fUSD/lending_fUSD_20251019
["ID","MTS","AMOUNT","RATE_DAILY","PERIOD"]
[391837413,1760901044532,-500.0,0.00032876,8]
[391837414,1760901044542,-167.783265,0.00032876,8]
[391837415,1760901044551,-500.0,0.00032876,8]
[391837416,1760901044561,-500.0,0.00032876,8]
[391837417,1760901044572,-500.0,0.00032876,8]
[391837418,1760901044582,-501.35073609,0.00032876,8]
[391837419,1760901044592,-500.0,0.00032876,8]
[391837420,1760901044601,-500.0,0.00032876,8]
[391837421,1760901044613,-500.0,0.00032876,8]
[391837422,1760901044623,-500.0,0.00032876,8]
[391837423,1760901044637,-500.0,0.00032876,8]
[391837424,1760901044646,-500.0,0.00032876,8]
[391837425,1760901044656,-500.0,0.00032876,8]
[391837426,1760901044666,-500.0,0.00032876,8]
[391837427,1760901044676,-431.12211751,0.00032876,8]
[391837428,1760901044685,-500.0,0.00032876,8]
[391837429,1760901044695,-438.06893653,0.00032876,8]
[391837430,1760901044704,-500.0,0.00032876,8]
[391837431,1760901044714,-507.63146056,0.00032876,8]
[391837432,1760901044724,-500.0,0.00032876,8]
[391837433,1760901044733,-500.0,0.00032876,8]
[391837434,1760901044743,-500.0,0.00032876,8]
[391837435,1760901044752,-504.00320959,0.00032876,8]
[391837436,1760901044762,-500.0,0.00032876,8]
[391837437,1760901044772,-500.0,0.00032876,8]
[391837438,1760901044781,-500.0,0.00032876,8]
[391837439,1760901044791,-501.6349578,0.00032876,8]
[391837440,1760901044802,-500.0,0.00032876,8]
[391837441,1760901044812,-500.0,0.00032876,8]
[391837442,1760901044822,-504.68296753,0.00032876,8]
[391837443,1760901044835,-500.0,0.00032876,8]
[391837444,1760901044845,-500.0,0.00032876,8]
[391837445,1760901044855,-500.0,0.00032876,8]
[391837446,1760901044866,-500.0,0.00032876,8]
[391837447,1760901044880,-533.0498603,0.00032876,8]
[391837448,1760901044889,-503.09304855,0.00032876,8]
[391837449,1760901044899,-501.19349631,0.00032876,8]
[391837450,1760901044908,-500.0,0.00032876,8]
[391837451,1760901044919,-512.26122744,0.00032876,8]
[391837452,1760901044928,-505.00796978,0.00032876,8]
[391837453,1760901044938,-504.21244095,0.00032876,8]
[391837454,1760901044948,-503.217141,0.00032876,8]
[391837455,1760901044958,-500.0,0.00032876,8]
[391837456,1760901044967,-500.0,0.00032876,8]
[391837457,1760901044977,-510.36508293,0.00032876,8]
[391837458,1760901044986,-500.0,0.00032876,8]
[391837459,1760901044995,-500.0,0.00032876,8]
[391837460,1760901045005,-501.39695368,0.00032876,8]
[391837461,1760901045014,-501.34630789,0.00032876,8]
[391837462,1760901045024,-500.0,0.00032876,8]
[391837463,1760901045037,-500.0,0.00032876,8]
[391837464,1760901045047,-505.42857313,0.00032876,8]
[391837465,1760901045056,-500.0,0.00032876,8]
[391837466,1760901045066,-500.0,0.00032876,8]
[391837467,1760901045075,-500.0,0.00032876,8]
[391837468,1760901045085,-541.33470813,0.00032876,8]
[391837469,1760901045094,-500.0,0.00032876,8]
[391837470,1760901045103,-500.0,0.00032876,8]
[391837471,1760901045112,-500.0,0.00032876,8]
[391837472,1760901045122,-500.0,0.00032876,8]
[391837473,1760901045131,-506.11295947,0.00032876,8]
[391837474,1760901045141,-500.0,0.00032876,8]
[391837475,1760901045150,-500.0,0.00032876,8]
[391837476,1760901045160,-615.86894597,0.00032876,8]
[391837477,1760901045170,-500.0,0.00032876,8]
[391837478,1760901045179,-500.0,0.00032876,8]
[391837479,1760901045189,-500.0,0.00032876,8]
[391837480,1760901045198,-503.24830874,0.00032876,8]
[391837481,1760901045207,-500.0,0.00032876,8]
[391837482,1760901045217,-500.0,0.00032876,8]
[391837483,1760901045227,-500.94838553,0.00032876,8]
[391837484,1760901045241,-500.0,0.00032876,8]
[391837485,1760901045251,-500.0,0.00032876,8]
[391837486,1760901045260,-500.77712333,0.00032876,8]
[391837487,1760901045269,-500.0,0.00032876,8]
[391837488,1760901045278,-500.0,0.00032876,8]
[391837489,1760901045288,-523.36125467,0.00032876,8]
[391837490,1760901045298,-500.0,0.00032876,8]
[391837491,1760901045309,-597.07256245,0.00032876,8]
[391837492,1760901045319,-500.0,0.00032876,8]
[391837493,1760901045330,-533.42442626,0.00032876,8]
[391837494,1760901045339,-500.0,0.00032876,8]
[391837495,1760901045350,-500.0,0.00032876,8]
[391837496,1760901045361,-500.0,0.00032876,8]
[391837497,1760901045370,-154.05736978,0.00032876,8]
[391837498,1760901045380,-500.0,0.00032876,8]
[391837499,1760901045391,-500.0,0.00032876,8]
[391837500,1760901045401,-500.0,0.00032876,8]
[391837501,1760901045412,-501.05713325,0.00032876,8]
[391837502,1760901045421,-500.0,0.00032876,8]
[391837503,1760901045433,-500.0,0.00032876,8]
[391837504,1760901045445,-500.0,0.00032876,8]
[391837505,1760901045455,-500.0,0.00032876,8]
[391837506,1760901045464,-931.05,0.00032876,8]
[391837507,1760901045474,-500.0,0.00032876,8]
[391837508,1760901045483,-502.95178363,0.00032876,8]
[391837509,1760901045492,-501.61404296,0.00032876,8]
[391837510,1760901045502,-500.0,0.00032876,8]
[391837511,1760901045512,-503.01710578,0.00032876,8]
[391837512,1760901045522,-500.0,0.00032876,8]
[391837513,1760901045531,-500.0,0.00032876,8]
[391837514,1760901045541,-500.0,0.00032876,8]
[391837515,1760901045551,-623.25327692,0.00032876,8]
[391837516,1760901045561,-500.0,0.00032876,8]
[391837517,1760901045571,-502.2495393,0.00032876,8]
[391837518,1760901045580,-506.8924601,0.00032876,8]
[391837519,1760901045589,-500.0,0.00032876,8]
[391837520,1760901045599,-500.0,0.00032876,8]
[391837521,1760901045608,-500.0,0.00032876,8]
[391837522,1760901045618,-500.0,0.00032876,8]
[391837523,1760901045627,-500.0,0.00032876,8]
[391837524,1760901045637,-500.0,0.00032876,8]
[391837525,1760901045647,-500.0,0.00032876,8]
[391837526,1760901045656,-506.85563517,0.00032876,8]
[391837527,1760901045665,-500.0,0.00032876,8]
[391837528,1760901045675,-500.0,0.00032876,8]
[391837529,1760901045684,-546.60600033,0.00032876,8]
[391837530,1760901045694,-500.0,0.00032876,8]
[391837531,1760901045703,-500.0,0.00032876,8]
[391837532,1760901045713,-500.0,0.00032876,8]
[391837533,1760901045723,-505.54975977,0.00032876,8]
[391837534,1760901045733,-503.07090499,0.00032876,8]
[391837535,1760901045743,-500.0,0.00032876,8]
[391837536,1760901045752,-462.80241606,0.00032876,8]
[391837537,1760901045762,-500.0,0.00032876,8]
[391837538,1760901045771,-521.0594368,0.00032876,8]
[391837539,1760901045781,-501.53118678,0.00032876,8]
[391837540,1760901045792,-503.19221276,0.00032876,8]
[391837541,1760901045802,-500.0,0.00032876,8]
[391837542,1760901045812,-500.0,0.00032876,8]
[391837543,1760901045823,-584.910903,0.00032876,30]
[391837544,1760901045833,-500.0,0.00032876,8]
[391837545,1760901045843,-500.0,0.00032876,8]
[391837546,1760901045853,-584.910903,0.00032876,30]
[391837547,1760901045862,-890.67,0.00032876,8]
[391837548,1760901045876,-500.0,0.00032876,8]
[391837549,1760901045886,-772.51,0.00032876,8]
[391837550,1760901045895,-584.910903,0.00032876,30]
[391837552,1760901045905,-500.0,0.00032876,8]
[391837554,1760901045915,-503.11750646,0.00032876,8]
[391837555,1760901045925,-584.910903,0.00032876,30]
[391837556,1760901045936,-500.0,0.00032876,8]
[391837557,1760901045947,-575.33245792,0.00032876,8]
[391837558,1760901045958,-568.88208766,0.00032876,8]
[391837559,1760901045968,-522.11307165,0.00032876,8]
[391837560,1760901045977,-500.0,0.00032876,8]
[391837561,1760901045988,-500.0,0.00032876,8]
[391837562,1760901045997,-163.59497094,0.00032876,8]
[391837563,1760901046008,-500.0,0.00032876,8]
[391837564,1760901046020,-502.99441115,0.00032876,8]
[391837565,1760901046030,-500.0,0.00032876,8]
[391837566,1760901046043,-500.0,0.00032876,8]
[391837567,1760901046054,-500.0,0.00032876,8]
[391837568,1760901046065,-500.0,0.00032876,8]
[391837569,1760901046075,-500.0,0.00032876,8]
[391837570,1760901046087,-500.0,0.00032876,8]
[391837571,1760901046097,-500.0,0.00032876,8]
[391837572,1760901046107,-532.0277008,0.00032876,8]
[391837573,1760901046116,-504.96841501,0.00032876,8]
[391837574,1760901046127,-500.0,0.00032876,8]
[391837575,1760901046137,-500.0,0.00032876,8]
[391837576,1760901046146,-500.0,0.00032876,8]
[391837577,1760901046156,-500.0,0.00032876,8]
[391837578,1760901046165,-500.0,0.00032876,8]
[391837579,1760901046175,-500.0,0.00032876,8]
[391837580,1760901046185,-500.0,0.00032876,8]
[391837581,1760901046194,-500.0,0.00032876,8]
[391837582,1760901046204,-265.59601219,0.00032876,8]
[391837583,1760901046213,-500.0,0.00032876,8]
[391837584,1760901046223,-397.12647058,0.00032876,8]
[391837585,1760901046234,-500.0,0.00032876,8]
[391837586,1760901046244,-500.0,0.00032876,8]
[391837587,1760901046254,-500.0,0.00032876,8]
[391837588,1760901046263,-500.0,0.00032876,8]
[391837589,1760901046273,-500.0,0.00032876,8]
[391837590,1760901046283,-500.0,0.00032876,8]
[391837591,1760901046292,-500.0,0.00032876,8]
[391837592,1760901046301,-500.0,0.00032876,8]
[391837593,1760901046311,-500.0,0.00032876,8]
[391837594,1760901046321,-500.0,0.00032876,8]
[391837595,1760901046331,-552.03637068,0.00032876,8]
[391837596,1760901046340,-403.6819149,0.00032876,8]
[391837597,1760901046350,-500.50965178,0.00032876,8]
[391837598,1760901046359,-500.0,0.00032876,8]
[391837599,1760901046369,-500.0,0.00032876,8]
[391837600,1760901046379,-623.07,0.00032876,8]
[391837601,1760901046388,-500.0,0.00032876,8]
[391837602,1760901046398,-300.0,0.00032876,2]
[391837603,1760901046407,-500.0,0.00032876,8]
[391837604,1760901046417,-500.0,0.00032876,8]
[391837605,1760901046427,-502.97747389,0.00032876,8]
[391837606,1760901046437,-748.98,0.00032876,8]
[391837607,1760901046446,-500.0,0.00032876,8]
[391837608,1760901046455,-505.58605454,0.00032876,8]
[391837609,1760901046465,-500.0,0.00032876,8]
[391837610,1760901046475,-500.0,0.00032876,8]
[391837611,1760901046485,-507.56,0.00032876,8]
[391837612,1760901046495,-500.0,0.00032876,8]
[391837613,1760901046504,-500.0,0.00032876,8]
[391837614,1760901046514,-1301.41,0.00032876,8]
[391837615,1760901046523,-500.0,0.00032876,8]
[391837616,1760901046533,-499.8044544,0.00032876,8]
[391837617,1760901046543,-500.0,0.00032876,8]
[391837618,1760901046553,-500.0,0.00032876,8]
[391837619,1760901046563,-500.0,0.00032876,8]
[391837620,1760901046572,-500.0,0.00032876,8]
[391837621,1760901046582,-500.0,0.00032876,8]
[391837622,1760901046592,-522.43935922,0.00032876,8]
[391837623,1760901046601,-1301.92,0.00032876,8]
[391837624,1760901046611,-500.0,0.00032876,8]
[391837625,1760901046621,-647.87542215,0.00032876,8]
[391837626,1760901046630,-500.0,0.00032876,8]
[391837627,1760901046640,-500.0,0.00032876,8]
[391837628,1760901046650,-500.0,0.00032876,8]
[391837629,1760901046659,-500.0,0.00032876,8]
[391837630,1760901046667,-500.0,0.00032876,8]
[391837631,1760901046676,-500.0,0.00032876,8]
[391837632,1760901046685,-500.0,0.00032876,8]
[391837633,1760901046695,-500.0,0.00032876,8]
[391837634,1760901046704,-500.0,0.00032876,8]
[391837635,1760901046714,-500.0,0.00032876,8]
[391837636,1760901046723,-500.0,0.00032876,8]
[391837637,1760901046732,-502.05040065,0.00032876,8]
[391837638,1760901046742,-500.0,0.00032876,8]
[391837639,1760901046751,-500.0,0.00032876,8]
[391837640,1760901046762,-401.19822787,0.00032876,8]
[391837641,1760901046771,-500.0,0.00032876,8]
[391837642,1760901046898,-500.0,0.00032876,8]
[391837643,1760901046924,-500.0,0.00032876,8]
[391837644,1760901046934,-1203.43,0.00032876,8]
[391837645,1760901046943,-500.0,0.00032876,8]
[391837646,1760901046954,-505.99505646,0.00032876,8]
[391837647,1760901046964,-500.0,0.00032876,8]
[391837648,1760901046973,-500.0,0.00032876,8]
[391837649,1760901046982,-502.27844884,0.00032876,8]
[391837650,1760901046992,-500.0,0.00032876,8]
[391837651,1760901047001,-500.0,0.00032876,8]
[391837652,1760901047010,-502.50997705,0.00032876,8]
[391837653,1760901047020,-500.0,0.00032876,8]
[391837654,1760901047029,-1045.46,0.00032876,8]
[391837655,1760901047038,-500.0,0.00032876,8]
[391837656,1760901047047,-500.0,0.00032876,8]
[391837657,1760901047057,-500.0,0.00032876,8]
[391837658,1760901047067,-503.9000438,0.00032876,8]
[391837659,1760901047076,-500.0,0.00032876,8]
[391837660,1760901047086,-503.06053158,0.00032876,8]
[391837661,1760901047095,-500.0,0.00032876,8]
[391837662,1760901047104,-500.0,0.00032876,8]
[391837663,1760901047114,-500.0,0.00032876,8]
[391837664,1760901047123,-500.0,0.00032876,8]
[391837665,1760901047133,-630.67727878,0.00032876,8]
[391837666,1760901047143,-500.0,0.00032876,8]
[391837667,1760901047152,-500.0,0.00032876,8]
[391837668,1760901047162,-959.13,0.00032876,8]
[391837669,1760901047171,-649.07,0.00032876,8]
[391837670,1760901047180,-500.0,0.00032876,8]
[391837671,1760901047190,-500.0,0.00032876,8]
[391837672,1760901047199,-803.32,0.00032876,8]
[391837673,1760901047208,-500.0,0.00032876,8]
[391837674,1760901047217,-500.0,0.00032876,8]
[391837675,1760901047226,-503.45137175,0.00032876,8]
[391837676,1760901047236,-513.96076297,0.00032876,8]
[391837677,1760901047246,-500.0,0.00032876,8]
[391837678,1760901047255,-500.0,0.00032876,8]
[391837679,1760901047265,-502.01976323,0.00032876,8]
[391837680,1760901047274,-691.49,0.00032876,8]
[391837681,1760901047283,-270.76971934,0.00032876,8]
[391837682,1760901047293,-500.0,0.00032876,8]
[391837683,1760901047303,-500.0,0.00032876,8]
[391837684,1760901047312,-500.0,0.00032876,8]
[391837685,1760901047321,-500.0,0.00032876,8]
[391837686,1760901047330,-500.0,0.00032876,8]
[391837687,1760901047339,-500.0,0.00032876,8]
[391837688,1760901047348,-500.0,0.00032876,8]
[391837689,1760901047357,-508.46386313,0.00032876,8]
[391837690,1760901047367,-501.33495513,0.00032876,8]
[391837691,1760901047376,-500.0,0.00032876,8]
[391837692,1760901047385,-500.0,0.00032876,8]
[391837693,1760901047395,-500.0,0.00032876,8]
[391837694,1760901047404,-380.04002106,0.00032876,8]
[391837695,1760901047414,-500.0,0.00032876,8]
[391837696,1760901047423,-500.0,0.00032876,8]
[391837697,1760901047432,-548.85237847,0.00032876,8]
[391837698,1760901047442,-500.0,0.00032876,8]
[391837699,1760901047451,-500.0,0.00032876,8]
[391837700,1760901047460,-500.0,0.00032876,8]
[391837701,1760901047470,-500.0,0.00032876,8]
[391837702,1760901047479,-1000.0,0.00032876,8]
[391837703,1760901047489,-500.0,0.00032876,8]
[391837704,1760901047498,-506.9284611,0.00032876,8]
[391837705,1760901047508,-641.98121105,0.00032876,8]
[391837706,1760901047518,-500.0,0.00032876,8]
[391837707,1760901047528,-467.63704196,0.00032876,8]
[391837708,1760901047537,-504.81963158,0.00032876,8]
[391837709,1760901047547,-500.0,0.00032876,8]
[391837710,1760901047556,-500.0,0.00032876,8]
[391837711,1760901047566,-289.03760139,0.00032876,8]
[391837712,1760901047576,-500.0,0.00032876,8]
[391837713,1760901047585,-508.61,0.00032876,8]
[391837714,1760901047596,-500.0,0.00032876,8]
[391837715,1760901047605,-500.0,0.00032876,8]
[391837716,1760901047615,-529.54785234,0.00032876,8]
[391837717,1760901047624,-500.0,0.00032876,8]
[391837718,1760901047634,-500.0,0.00032876,8]
[391837719,1760901047644,-512.6840933,0.00032876,8]
[391837720,1760901047653,-500.0,0.00032876,8]
[391837721,1760901047662,-609.57176464,0.00032876,8]
[391837722,1760901047672,-500.0,0.00032876,8]
[391837723,1760901047681,-500.0,0.00032876,8]
[391837724,1760901047690,-505.13569742,0.00032876,8]
[391837725,1760901047699,-500.0,0.00032876,8]
[391837726,1760901047709,-544.81362336,0.00032876,8]
[391837727,1760901047719,-500.0,0.00032876,8]
[391837728,1760901047728,-528.83539741,0.00032876,8]
[391837729,1760901047738,-608.0241132,0.00032876,8]
[391837730,1760901047747,-500.0,0.00032876,8]
[391837731,1760901047757,-504.23128812,0.00032876,8]
[391837732,1760901047766,-500.0,0.00032876,8]
[391837733,1760901047776,-500.0,0.00032876,8]
[391837734,1760901047785,-507.05051082,0.00032876,8]
[391837735,1760901047795,-500.68236038,0.00032876,8]
[391837736,1760901047804,-500.0,0.00032876,8]
[391837737,1760901047814,-502.85586516,0.00032876,8]
[391837738,1760901047824,-500.0,0.00032876,8]
[391837739,1760901047834,-500.0,0.00032876,8]
[391837740,1760901047843,-553.04510438,0.00032876,8]
[391837741,1760901047852,-499.25921543,0.00032876,8]
[391837742,1760901047861,-500.0,0.00032876,8]
[391837743,1760901047873,-528.36732062,0.00032876,8]
[391837744,1760901047882,-500.0,0.00032876,8]
[391837745,1760901047891,-500.0,0.00032876,8]
[391837746,1760901047900,-291.61461744,0.00032876,8]
[391837747,1760901047909,-500.0,0.00032876,8]
[391837748,1760901047918,-507.06358695,0.00032876,8]
[391837749,1760901047928,-500.0,0.00032876,8]
[391837750,1760901047937,-404.91077313,0.00032876,8]
[391837751,1760901047948,-500.0,0.00032876,8]
[391837752,1760901047957,-500.0,0.00032876,8]
[391837753,1760901047967,-500.0,0.00032876,8]
[391837754,1760901047976,-500.0,0.00032876,8]
[391837755,1760901047984,-504.53964138,0.00032876,8]
[391837756,1760901047994,-530.68425428,0.00032876,8]
[391837757,1760901048004,-500.0,0.00032876,8]
[391837758,1760901048013,-511.17830549,0.00032876,8]
[391837759,1760901048022,-362.37371884,0.00032876,8]
[391837760,1760901048031,-263.37032139,0.00032876,8]
[391837761,1760901048040,-500.0,0.00032876,8]
[391837762,1760901048050,-500.0,0.00032876,8]
[391837763,1760901048059,-553.19381451,0.00032876,8]
[391837764,1760901048070,-500.0,0.00032876,8]
[391837765,1760901048080,-1187.93,0.00032876,8]
[391837766,1760901048089,-559.55462596,0.00032876,8]
[391837767,1760901048100,-186.22945,0.00032876,30]
[391837768,1760901048110,-186.22945,0.00032876,30]
[391837769,1760901048119,-186.22945,0.00032876,30]
[391837770,1760901048130,-186.22945,0.00032876,30]
[391837771,1760901048139,-503.25084736,0.00032876,8]
[391837772,1760901048148,-186.22945,0.00032876,30]
[391837773,1760901048157,-186.22945,0.00032876,30]
[391837774,1760901048167,-503.95714499,0.00032876,8]
[391837775,1760901048177,-216.8976894,0.00032876,8]
[391837776,1760901048186,-186.22945,0.00032876,30]
[391837777,1760901048196,-186.22945,0.00032876,30]
[391837778,1760901048206,-503.67603096,0.00032876,8]
[391837779,1760901048216,-649.75580406,0.00032876,8]
[391837780,1760901048225,-518.55895883,0.00032876,8]
[391837781,1760901048235,-596.86551174,0.00032876,8]
[391837782,1760901048245,-505.3809248,0.00032876,8]
[391837783,1760901048255,-500.0,0.00032876,8]
[391837784,1760901048265,-243.25537774,0.00032876,8]
[391837785,1760901048274,-212.71143428,0.00032876,8]
[391837786,1760901048283,-500.0,0.00032876,8]
[391837787,1760901048292,-500.0,0.00032876,8]
[391837788,1760901048302,-619.07474474,0.00032876,8]
[391837789,1760901048311,-501.46961751,0.00032876,8]
[391837790,1760901048321,-500.0,0.00032876,8]
[391837791,1760901048331,-500.0,0.00032876,8]
[391837792,1760901048341,-518.32568928,0.00032876,8]
[391837793,1760901048350,-500.0,0.00032876,8]
[391837794,1760901048360,-500.0,0.00032876,8]
[391837795,1760901048369,-500.0,0.00032876,8]
[391837796,1760901048379,-505.42602601,0.00032876,8]
[391837797,1760901048388,-500.0,0.00032876,2]
[391837798,1760901048398,-555.46798479,0.00032876,8]
[391837799,1760901048408,-501.49108969,0.00032876,8]
[391837800,1760901048417,-500.0,0.00032876,8]
[391837801,1760901048427,-500.0,0.00032876,8]
[391837802,1760901048436,-501.93348155,0.00032876,8]
[391837803,1760901048446,-500.0,0.00032876,8]
[391837804,1760901048457,-504.90744375,0.00032876,8]
[391837805,1760901048468,-1293.26,0.00032876,8]
[391837806,1760901048477,-500.0,0.00032876,8]
[391837807,1760901048487,-520.60060327,0.00032876,8]
[391837808,1760901048496,-500.0,0.00032876,8]
[391837809,1760901048506,-500.26124394,0.00032876,8]
[391837810,1760901048515,-511.61435332,0.00032876,8]
[391837811,1760901048526,-509.0877727,0.00032876,8]
[391837812,1760901048536,-500.0,0.00032876,8]
[391837813,1760901048545,-502.9487036,0.00032876,8]
[391837814,1760901048555,-499.61913122,0.00032876,8]
[391837815,1760901048564,-500.0,0.00032876,8]
[391837816,1760901048573,-500.0,0.00032876,8]
[391837817,1760901048582,-504.1449882,0.00032876,8]
[391837818,1760901048591,-505.66991581,0.00032876,8]
[391837819,1760901048601,-500.0,0.00032876,8]
[391837820,1760901048611,-500.0,0.00032876,8]
[391837821,1760901048620,-515.22759674,0.00032876,8]
[391837822,1760901048629,-511.53620062,0.00032876,8]
[391837823,1760901048638,-500.0,0.00032876,8]
[391837824,1760901048647,-500.0,0.00032876,8]
[391837825,1760901048656,-500.0,0.00032876,8]
[391837826,1760901048666,-500.73743604,0.00032876,8]
[391837827,1760901048675,-631.22483011,0.00032876,8]
[391837828,1760901048685,-500.0,0.00032876,8]
[391837829,1760901048694,-503.34492103,0.00032876,8]
[391837830,1760901048704,-501.5505849,0.00032876,8]
[391837831,1760901048716,-500.0,0.00032876,8]
[391837832,1760901048726,-500.0,0.00032876,8]
[391837833,1760901048736,-500.0,0.00032876,8]
[391837834,1760901048745,-500.0,0.00032876,8]
[391837835,1760901048755,-500.0,0.00032876,8]
[391837836,1760901048765,-500.0,0.00032876,8]
[391837837,1760901048774,-502.54730876,0.00032876,8]
[391837838,1760901048783,-500.0,0.00032876,8]
[391837839,1760901048793,-503.7133718,0.00032876,8]
[391837840,1760901048802,-614.45454381,0.00032876,8]
[391837841,1760901048812,-505.77289388,0.00032876,8]
[391837842,1760901048821,-500.0,0.00032876,8]
[391837843,1760901048831,-500.0,0.00032876,8]
[391837844,1760901048840,-377.19428902,0.00032876,8]
[391837845,1760901048849,-500.0,0.00032876,8]
[391837846,1760901048859,-500.0,0.00032876,8]
[391837847,1760901048870,-500.0,0.00032876,8]
[391837848,1760901048882,-501.60251391,0.00032876,8]
[391837849,1760901048891,-500.0,0.00032876,8]
[391837850,1760901048901,-500.0,0.00032876,8]
[391837851,1760901048911,-508.687646,0.00032876,8]
[391837852,1760901048921,-500.0,0.00032876,8]
[391837853,1760901048931,-500.0,0.00032876,8]
[391837854,1760901048940,-373.73736138,0.00032876,8]
[391837855,1760901048951,-500.0,0.00032876,8]
[391837856,1760901048960,-500.0,0.00032876,8]
[391837857,1760901048971,-500.0,0.00032876,8]
[391837858,1760901048980,-500.0,0.00032876,8]
[391837859,1760901048989,-500.0,0.00032876,8]
[391837860,1760901048999,-500.0,0.00032876,8]
[391837861,1760901049009,-500.0,0.00032876,8]
[391837862,1760901049019,-511.35360588,0.00032876,8]
[391837863,1760901049030,-500.0,0.00032876,8]
[391837864,1760901049039,-504.58993898,0.00032876,8]
[391837865,1760901049049,-310.70517203,0.00032876,8]
[391837866,1760901049060,-500.0,0.00032876,8]
[391837867,1760901049070,-500.0,0.00032876,8]
[391837868,1760901049080,-500.0,0.00032876,8]
[391837869,1760901049090,-500.0,0.00032876,8]
[391837870,1760901049099,-500.0,0.00032876,8]
[391837871,1760901049109,-500.0,0.00032876,8]
[391837872,1760901049119,-500.0,0.00032876,8]
[391837873,1760901049128,-500.0,0.00032876,8]
[391837874,1760901049138,-500.0,0.00032876,8]
[391837875,1760901049147,-500.0,0.00032876,8]
[391837876,1760901049156,-490.02136536,0.00032876,8]
[391837877,1760901049165,-1028.97,0.00032876,8]
[391837878,1760901049174,-500.0,0.00032876,8]
[391837879,1760901049183,-534.55937894,0.00032876,8]
[391837880,1760901049193,-500.0,0.00032876,8]
[391837881,1760901049202,-500.0,0.00032876,8]
[391837882,1760901049212,-505.26042846,0.00032876,8]
[391837883,1760901049222,-504.71869065,0.00032876,8]
[391837884,1760901049231,-503.05963221,0.00032876,8]
[391837885,1760901049241,-500.0,0.00032876,8]
[391837886,1760901049250,-686.45,0.00032876,8]
[391837887,1760901049259,-500.0,0.00032876,8]
[391837888,1760901049269,-395.26473688,0.00032876,8]
[391837889,1760901049278,-500.0,0.00032876,8]
[391837890,1760901049287,-500.0,0.00032876,8]
[391837891,1760901049297,-500.0,0.00032876,8]
[391837892,1760901049306,-500.0,0.00032876,8]
[391837893,1760901049316,-244.3519909,0.00032876,8]
[391837894,1760901049325,-504.10543027,0.00032876,8]
[391837895,1760901049335,-233.09641359,0.00032876,8]
[391837896,1760901049344,-587.12111043,0.00032876,8]
[391837897,1760901049352,-500.0,0.00032876,8]
[391837898,1760901049362,-500.0,0.00032876,8]
[391837899,1760901049371,-500.0,0.00032876,8]
[391837900,1760901049380,-500.0,0.00032876,8]
[391837901,1760901049390,-500.0,0.00032876,8]
[391837902,1760901049399,-500.0,0.00032876,8]
[391837903,1760901049408,-500.0,0.00032876,8]
[391837904,1760901049418,-503.40406168,0.00032876,8]
[391837905,1760901049427,-500.0,0.00032876,8]
[391837906,1760901049436,-500.0,0.00032876,8]
[391837907,1760901049446,-500.0,0.00032876,8]
[391837908,1760901049455,-500.0,0.00032876,8]
[391837909,1760901049464,-151.0,0.00032876,30]
[391837910,1760901049474,-151.0,0.00032876,30]
[391837911,1760901049484,-297.0,0.00032876,30]
[391837912,1760901049493,-500.0,0.00032876,8]
[391837913,1760901049502,-151.0,0.00032876,30]
[391837914,1760901049512,-355.83944607,0.00032876,8]